bitfinex/quotes_BTCUSD_20240823
["timestamp","ask_amount","ask_price","bid_price","bid_amount"]
[1724442115244,0.0004477,63799.0,63798.0,2.04509948]
[1724442115519,0.0004477,63799.0,63798.0,1.72761048]
[1724442115731,0.0004477,63799.0,63798.0,2.04109948]
[1724442115937,0.0004477,63799.0,63798.0,1.72761048]
[1724442116490,0.0004477,63799.0,63798.0,1.72661048]
[1724442118044,0.4791477,63799.0,63798.0,1.39012148]
[1724442119412,0.4791477,63799.0,63798.0,1.41312148]
[1724442121776,0.4791477,63799.0,63798.0,1.70692078]
[1724442121991,0.0004477,63799.0,63798.0,1.70692078]
[1724442122599,0.0004477,63799.0,63798.0,2.02140978]
[1724442123218,0.0004477,63799.0,63798.0,3.05449845]
[1724442123418,0.0004477,63799.0,63798.0,3.37730506]
[1724442123612,0.0391297,63800.0,63799.0,1.696078]
[1724442123826,0.7425,63805.0,63804.0,1.268647]
[1724442124023,0.75075,63822.0,63821.0,0.001]
[1724442124229,0.75075,63822.0,63821.0,1.74381898]
[1724442124429,0.75075,63822.0,63821.0,2.47057098]
[1724442124632,0.75075,63822.0,63821.0,2.78594698]
[1724442124836,0.75075,63822.0,63821.0,1.67519498]
[1724442125262,0.75075,63822.0,63821.0,1.67719498]
[1724442125601,0.75075,63822.0,63821.0,1.99057098]
[1724442125806,0.75075,63822.0,63821.0,2.00457098]
[1724442126153,0.75075,63822.0,63821.0,2.48363098]
[1724442126361,0.75075,63822.0,63821.0,2.48563098]
[1724442126576,0.75075,63822.0,63821.0,2.49963098]
[1724442126785,0.75075,63822.0,63821.0,2.51363098]
[1724442126995,0.75075,63822.0,63821.0,2.51163098]
[1724442127206,0.75075,63822.0,63821.0,2.49563098]
[1724442127433,0.75075,63822.0,63821.0,2.18425498]
[1724442127659,0.75075,63822.0,63821.0,2.18125498]
[1724442128401,0.75075,63822.0,63821.0,2.16725498]
[1724442128610,0.75075,63822.0,63821.0,2.19525498]
[1724442128833,0.75075,63822.0,63821.0,2.18125498]
[1724442129034,0.75075,63822.0,63821.0,2.16725498]
[1724442129240,0.75075,63822.0,63821.0,2.18125498]
[1724442129443,0.75075,63822.0,63821.0,2.19825498]
[1724442130063,0.75075,63822.0,63821.0,2.19525498]
[1724442132217,1.01515,63822.0,63821.0,2.19525498]
[1724442134645,1.21165,63822.0,63821.0,2.19525498]
[1724442134852,1.21165,63822.0,63821.0,2.09525498]
[1724442135602,1.21165,63822.0,63821.0,2.08125498]
[1724442135815,1.21165,63822.0,63821.0,2.09525498]
[1724442136184,1.21165,63822.0,63821.0,2.08125498]
[1724442136389,1.21165,63822.0,63821.0,1.78187898]
[1724442136593,1.21165,63822.0,63821.0,1.75887898]
[1724442136822,1.21165,63822.0,63821.0,0.66206298]
[1724442137039,1.21165,63822.0,63821.0,0.49806]
[1724442137460,0.871915,63822.0,63814.0,0.156704]
[1724442137698,0.4598,63820.0,63814.0,0.16400298]
[1724442137901,0.75075,63822.0,63821.0,0.004]
[1724442138105,0.2726,63821.0,63809.0,0.00018865]
[1724442138306,0.4598,63821.0,63809.0,0.00018865]
[1724442138940,0.1872,63820.0,63809.0,0.00018865]
[1724442139141,0.1872,63818.0,63809.0,0.00018865]
[1724442139349,0.2726,63817.0,63809.0,0.00018865]
[1724442139567,0.4598,63819.0,63809.0,0.00018865]
[1724442139776,0.2726,63817.0,63809.0,0.00018865]
[1724442139977,0.1872,63816.0,63809.0,0.00018865]
[1724442140194,0.4598,63815.0,63809.0,0.00018865]
[1724442140404,0.2726,63812.0,63786.0,0.313543]
[1724442140657,0.2726,63812.0,63783.0,0.49229154]
[1724442140658,0.4598,63799.0,63783.0,0.49229154]
[1724442140868,0.4598,63799.0,63784.0,0.49229154]
[1724442140869,0.001,63788.0,63784.0,0.49229154]
[1724442141078,0.002,63789.0,63770.0,0.156812]
[1724442141079,0.2726,63781.0,63770.0,0.156812]
[1724442141324,0.2726,63781.0,63747.0,0.1897]
[1724442141325,0.2736,63781.0,63762.0,0.313661]
[1724442141535,0.2726,63781.0,63768.0,0.156816]
[1724442141740,0.001,63782.0,63762.0,0.313661]
[1724442141741,0.4598,63779.0,63765.0,0.156824]
[1724442141959,0.4608,63778.0,63759.0,0.313679]
[1724442142182,0.4608,63778.0,63746.0,0.313742]
[1724442142183,0.1872,63770.0,63743.0,0.313756]
[1724442142388,0.2726,63762.0,63746.0,0.313741]
[1724442142599,0.1872,63761.0,63753.0,0.156853]
[1724442142810,0.2726,63760.0,63759.0,0.15684]
[1724442143009,0.2726,63760.0,63759.0,0.63452398]
[1724442143534,0.2726,63760.0,63759.0,0.32084298]
[1724442143734,0.2726,63760.0,63759.0,0.16400298]
[1724442144197,0.2866,63760.0,63759.0,0.32084298]
[1724442144595,0.2866,63760.0,63757.0,0.0009075]
[1724442144795,0.2726,63758.0,63757.0,0.0009075]
[1724442146005,0.2726,63758.0,63757.0,0.0019075]
[1724442146006,0.2846,63758.0,63757.0,0.0019075]
[1724442146182,0.2846,63758.0,63757.0,0.0029075]
[1724442146393,0.2846,63758.0,63757.0,0.0019075]
[1724442146800,0.2986,63758.0,63757.0,0.0029075]
[1724442147224,0.53268,63758.0,63757.0,0.0029075]
[1724442147450,0.2384,63747.0,63733.0,0.313805]
[1724442147663,0.2384,63745.0,63739.0,0.156888]
[1724442148075,0.2384,63745.0,63736.0,0.313793]
[1724442148076,0.2384,63745.0,63738.0,0.313781]
[1724442148300,0.2384,63745.0,63741.0,0.156884]
[1724442148512,0.2384,63745.0,63740.0,0.156886]
[1724442148726,0.2384,63745.0,63741.0,0.156884]
[1724442148962,0.2384,63745.0,63739.0,0.156887]
[1724442149167,0.2384,63745.0,63736.0,0.313793]
[1724442149368,0.2384,63745.0,63741.0,0.156884]
[1724442149789,0.2384,63745.0,63744.0,0.156877]
[1724442150006,0.2384,63745.0,63744.0,0.63463498]
[1724442150256,0.2384,63745.0,63744.0,0.94838998]
[1724442150458,0.2384,63745.0,63744.0,1.26214498]
[1724442150656,0.2384,63745.0,63744.0,0.94838998]
[1724442151085,0.2384,63745.0,63744.0,0.94938998]
[1724442152584,0.2384,63745.0,63744.0,1.26314498]
[1724442152823,0.141,63764.0,63751.0,0.47058]
[1724442152824,0.1977,63752.0,63751.0,0.47058]
[1724442153034,0.14,63764.0,63751.0,0.16400298]
[1724442153239,0.003,63763.0,63751.0,0.16400298]
[1724442153448,0.2277,63762.0,63751.0,0.16400298]
[1724442153660,0.2277,63760.0,63751.0,0.16400298]
[1724442153866,0.2007,63759.0,63732.0,0.009064]
[1724442154101,0.14,63764.0,63737.0,0.16400298]
[1724442154102,0.1977,63751.0,63737.0,0.16400298]
[1724442154320,0.2277,63750.0,63740.0,0.156887]
[1724442154539,0.2277,63750.0,63739.0,0.156889]
[1724442154744,0.2277,63750.0,63743.0,0.156879]
[1724442154958,0.2277,63750.0,63741.0,0.156884]
[1724442155369,0.2277,63750.0,63739.0,0.156887]
[1724442155582,0.2277,63750.0,63742.0,0.156881]
[1724442155789,0.2307,63750.0,63742.0,0.156881]
[1724442156018,0.2307,63750.0,63749.0,0.31373]
[1724442156214,0.2307,63750.0,63749.0,0.94832798]
[1724442156422,0.2307,63750.0,63749.0,1.26205798]
[1724442156663,0.25529463,63750.0,63749.0,1.26205798]
[1724442156869,0.26029463,63750.0,63749.0,1.26205798]
[1724442157077,0.25229463,63750.0,63743.0,0.1]
[1724442157292,0.25229463,63750.0,63732.0,0.242964]
[1724442157293,0.25229463,63750.0,63749.0,0.156865]
[1724442157503,0.26010605,63750.0,63732.0,0.109064]
[1724442157708,0.26010605,63750.0,63746.0,0.313741]
[1724442157921,0.25710605,63750.0,63749.0,0.470595]
[1724442158126,0.26010605,63750.0,63749.0,0.94832798]
[1724442158327,0.26010605,63750.0,63749.0,1.26205798]
[1724442158532,0.02959463,63750.0,63749.0,1.57578798]
[1724442158959,0.02959463,63750.0,63736.0,0.0009064]
[1724442158960,0.1766,63749.0,63736.0,0.0009064]
[1724442159222,0.001,63737.0,63736.0,0.0009064]
[1724442159403,0.02827157,63737.0,63736.0,0.0009064]
[1724442159609,0.20687157,63737.0,63734.0,0.009086]
[1724442159830,0.001,63731.0,63712.0,0.50137754]
[1724442160035,0.1786,63733.0,63719.0,0.313875]
[1724442160036,0.1766,63733.0,63719.0,0.313875]
[1724442160270,0.1766,63733.0,63726.0,0.16400298]
[1724442160488,0.2304,63732.0,63726.0,0.16400298]
[1724442160710,0.2304,63732.0,63728.0,0.313832]
[1724442160914,0.2304,63732.0,63731.0,0.470728]
[1724442161119,0.2304,63732.0,63731.0,0.94854998]
[1724442161537,0.2304,63732.0,63731.0,0.63473098]
[1724442161941,0.2404,63732.0,63731.0,0.63473098]
[1724442162562,0.2404,63732.0,63731.0,0.16400298]
[1724442162771,0.2404,63732.0,63731.0,0.32091198]
[1724442162974,0.2514,63732.0,63731.0,0.32091198]
[1724442163185,0.2414,63732.0,63731.0,0.63473098]
[1724442163386,0.2414,63732.0,63731.0,0.32091198]
[1724442163591,0.2514,63732.0,63731.0,0.63473098]
[1724442164217,0.2514,63732.0,63731.0,0.94854998]
[1724442164869,0.2514,63732.0,63731.0,0.63473098]
[1724442166602,0.2514,63732.0,63731.0,0.94854998]
[1724442167036,0.2514,63732.0,63731.0,0.63473098]
[1724442168196,0.2514,63732.0,63731.0,0.94854998]
[1724442168612,0.021,63732.0,63731.0,0.94854998]
[1724442169500,0.021,63732.0,63731.0,0.32091198]
[1724442169759,0.27477511,63737.0,63732.0,0.156905]
[1724442169970,0.27477511,63737.0,63732.0,0.16400298]
[1724442170128,0.27477511,63737.0,63732.0,0.32090798]
[1724442170332,0.27477511,63737.0,63733.0,0.156904]
[1724442170787,0.01215147,63736.0,63734.0,0.156901]
[1724442171003,0.01215147,63735.0,63734.0,0.156901]
[1724442171233,0.01215147,63735.0,63734.0,0.470705]
[1724442171446,0.01215147,63735.0,63734.0,1.43911598]
[1724442171660,0.2264,63746.0,63745.0,0.784375]
[1724442171892,0.2264,63746.0,63745.0,0.156875]
[1724442172104,0.2264,63746.0,63745.0,0.470625]
[1724442172317,0.2264,63746.0,63745.0,0.156875]
[1724442172531,0.2264,63746.0,63745.0,0.470625]
[1724442172744,0.2264,63746.0,63736.0,0.313792]
[1724442172966,0.01214816,63745.0,63739.0,0.313777]
[1724442173165,0.2404,63746.0,63737.0,0.16400298]
[1724442173166,0.24484816,63744.0,63737.0,0.16400298]
[1724442173377,0.24484816,63744.0,63742.0,0.156882]
[1724442173378,0.01214816,63743.0,63742.0,0.156882]
[1724442173588,0.2327,63744.0,63743.0,0.470638]
[1724442173811,0.2327,63744.0,63743.0,0.94839998]
[1724442174023,0.2327,63744.0,63743.0,1.26215898]
[1724442174024,0.24484859,63744.0,63743.0,1.26215898]
[1724442174229,0.2327,63744.0,63743.0,1.26215898]
[1724442174467,0.002,63746.0,63745.0,1.098125]
[1724442174689,0.002,63746.0,63745.0,1.26212798]
[1724442175763,0.4038,63749.0,63748.0,0.470602]
[1724442175970,0.4159467,63749.0,63748.0,0.470602]
[1724442176169,0.4159467,63749.0,63746.0,0.156872]
[1724442176374,0.0121467,63748.0,63747.0,0.470609]
[1724442176593,0.0121467,63748.0,63747.0,0.94835198]
[1724442176806,0.0121467,63748.0,63747.0,1.26209198]
[1724442177417,0.2257,63749.0,63748.0,0.784337]
[1724442177618,0.23784653,63749.0,63748.0,0.94833998]
[1724442179208,0.23784653,63749.0,63748.0,0.63960498]
[1724442179573,0.23784653,63749.0,63748.0,0.95333998]
[1724442179774,0.26244136,63749.0,63748.0,0.63960498]
[1724442180140,0.26244192,63749.0,63748.0,0.63960498]
[1724442180370,0.26244192,63749.0,63748.0,0.64560498]
[1724442181051,0.26244192,63749.0,63748.0,0.95933998]
[1724442181287,0.23784709,63749.0,63748.0,1.27307498]
[1724442181498,0.243,63753.0,63748.0,0.17500298]
[1724442181704,0.243,63753.0,63752.0,0.156857]
[1724442181916,0.2551457,63753.0,63752.0,0.470572]
[1724442182398,0.25514572,63753.0,63752.0,0.94828998]
[1724442182604,0.243,63765.0,63761.0,0.470506]
[1724442182833,0.743325,63764.0,63763.0,0.15683]
[1724442183042,0.743325,63764.0,63763.0,1.26181598]
[1724442183480,0.76791429,63764.0,63763.0,1.26181598]
[1724442184120,0.76791429,63764.0,63763.0,1.67547698]
[1724442184331,0.76791429,63764.0,63763.0,1.93077698]
[1724442184537,0.76791429,63764.0,63763.0,2.11267698]
[1724442184790,0.76791429,63764.0,63763.0,2.11367698]
[1724442185261,0.76791429,63764.0,63763.0,2.74099898]
[1724442185511,0.743325,63764.0,63763.0,2.42933798]
[1724442185751,0.743325,63764.0,63763.0,2.11267698]
[1724442186215,0.743325,63764.0,63763.0,2.11867698]
[1724442186431,0.743325,63764.0,63763.0,1.80501598]
[1724442186854,0.743325,63764.0,63763.0,1.81301598]
[1724442188239,0.743325,63764.0,63763.0,1.79901598]
[1724442188640,0.743325,63764.0,63763.0,2.13967698]
[1724442188850,0.743325,63764.0,63763.0,1.81201598]
[1724442189065,0.743325,63764.0,63763.0,2.13767698]
[1724442189483,0.753325,63764.0,63763.0,2.11267698]
[1724442189691,0.753325,63764.0,63763.0,2.14067698]
[1724442189935,0.753325,63764.0,63763.0,2.12667698]
[1724442190436,0.753325,63764.0,63763.0,2.12467698]
[1724442191477,0.753325,63764.0,63763.0,2.11267698]
[1724442191694,0.753325,63764.0,63763.0,2.13967698]
[1724442192111,0.753325,63764.0,63763.0,2.11267698]
[1724442192313,0.753325,63764.0,63763.0,2.12667698]
[1724442192527,0.753325,63764.0,63763.0,2.14067698]
[1724442192752,0.753325,63764.0,63763.0,2.12667698]
[1724442192975,0.753325,63764.0,63763.0,1.31081598]
[1724442193194,0.753325,63764.0,63763.0,0.17800298]
[1724442193398,0.753325,63764.0,63763.0,0.33483298]
[1724442193604,0.753325,63764.0,63763.0,0.34883298]
[1724442193807,0.753325,63764.0,63763.0,0.19200298]
[1724442194014,0.998325,63764.0,63763.0,0.028]
[1724442194239,1.28871587,63764.0,63763.0,0.028]
[1724442194642,1.28871587,63764.0,63763.0,0.014]
[1724442194850,1.28871587,63764.0,63731.0,0.80701614]
[1724442194851,0.001,63754.0,63731.0,0.80701614]
[1724442195103,0.001,63754.0,63747.0,0.49229154]
[1724442195104,0.2414,63753.0,63747.0,0.49229154]
[1724442195312,0.2414,63753.0,63738.0,0.15689]
[1724442195522,0.02459657,63752.0,63738.0,0.15689]
[1724442195733,0.26829966,63751.0,63736.0,0.156896]
[1724442195938,0.1953,63750.0,63734.0,0.313802]
[1724442196146,0.1953,63750.0,63731.0,0.80701614]
[1724442196147,0.2424,63749.0,63732.0,0.49229154]
[1724442196355,0.2424,63749.0,63747.0,0.002]
[1724442196558,0.2424,63749.0,63747.0,0.001]
[1724442197572,0.2424,63749.0,63736.0,0.156897]
[1724442197966,0.2424,63749.0,63740.0,0.0029086]
[1724442198169,0.2444,63749.0,63740.0,0.0029086]
[1724442198374,0.2414,63747.0,63742.0,0.00018885]
[1724442199342,0.2414,63747.0,63742.0,0.15806985]
[1724442199545,0.2544,63747.0,63742.0,0.00118885]
[1724442199741,0.2544,63747.0,63742.0,0.15806985]
[1724442200019,0.2544,63747.0,63742.0,0.00118885]
[1724442200432,0.2664,63747.0,63744.0,0.156876]
[1724442200638,0.2664,63747.0,63746.0,0.470617]
[1724442200837,0.2664,63747.0,63746.0,0.94836498]
[1724442201041,0.2664,63747.0,63746.0,0.63461998]
[1724442201468,0.2534,63747.0,63746.0,0.63461998]
[1724442201844,0.2544,63747.0,63746.0,0.63461998]
[1724442202054,0.2634,63747.0,63746.0,0.63561998]
[1724442202230,0.2504,63747.0,63746.0,0.63461998]
[1724442202611,0.2554,63747.0,63746.0,0.63461998]
[1724442203038,0.2554,63747.0,63746.0,0.32087498]
[1724442203260,0.2554,63747.0,63742.0,0.00109635]
[1724442204271,0.2524,63747.0,63742.0,0.00109635]
[1724442204488,0.2554,63747.0,63742.0,0.00109635]
[1724442204695,0.2444,63747.0,63742.0,0.00109635]
[1724442205141,0.2464,63747.0,63742.0,0.00109635]
[1724442206299,0.2444,63747.0,63742.0,0.00109635]
[1724442206498,0.2414,63745.0,63742.0,0.00109635]
[1724442206699,0.2414,63745.0,63742.0,0.00209635]
[1724442206923,0.2444,63745.0,63742.0,0.00209635]
[1724442207134,0.4338,63743.0,63742.0,0.00309635]
[1724442207524,0.44595274,63743.0,63742.0,0.00309635]
[1724442207893,0.4308,63743.0,63742.0,0.00109635]
[1724442208095,0.48500237,63743.0,63742.0,0.00209635]
[1724442208278,0.4308,63743.0,63742.0,0.00209635]
[1724442208479,0.4308,63743.0,63742.0,0.00309635]
[1724442208680,0.4308,63743.0,63742.0,0.00209635]
[1724442209116,0.008,63743.0,63742.0,0.79362733]
[1724442209333,0.008,63743.0,63742.0,1.05050933]
[1724442209544,0.008,63743.0,63742.0,1.36427333]
[1724442209756,0.008,63743.0,63742.0,1.36408448]
[1724442210198,0.008,63743.0,63742.0,1.67784848]
[1724442210405,0.016,63743.0,63742.0,1.67884848]
[1724442210783,0.008,63743.0,63742.0,1.67784848]
[1724442211222,0.008,63743.0,63742.0,1.67984848]
[1724442211431,0.05,63749.0,63748.0,0.784337]
[1724442211639,0.05,63749.0,63748.0,0.94833998]
[1724442212915,0.051,63749.0,63748.0,0.95833998]
[1724442213746,0.052,63749.0,63748.0,0.96733998]
[1724442216222,0.05181124,63749.0,63748.0,0.96733998]
[1724442216782,0.05181124,63749.0,63748.0,0.65360498]
[1724442217000,0.002,63749.0,63748.0,0.65360498]
[1724442217201,0.002,63749.0,63748.0,0.96733998]
[1724442217368,0.02659466,63749.0,63748.0,0.65360498]
[1724442221925,0.02659466,63749.0,63748.0,0.33986998]
[1724442222541,0.02659466,63749.0,63748.0,0.65360498]
[1724442224152,0.26829466,63749.0,63748.0,0.019]
[1724442224773,0.28044328,63749.0,63748.0,0.019]
[1724442225391,0.27944328,63749.0,63748.0,0.009]
[1724442225591,0.1906,63748.0,63742.0,0.0009075]
[1724442227535,0.1996,63748.0,63742.0,0.0019075]
[1724442227759,0.04658947,63747.0,63742.0,0.0019075]
[1724442227965,0.1996,63748.0,63742.0,0.0019075]
[1724442228421,0.224,63747.0,63742.0,0.0019075]
[1724442228630,0.0121488,63746.0,63742.0,0.0019075]
[1724442228885,0.0121488,63746.0,63742.0,0.0009075]
[1724442229101,0.0121488,63746.0,63742.0,0.0029075]
[1724442229559,0.0121488,63746.0,63742.0,0.0019075]
[1724442229785,0.0191488,63746.0,63742.0,0.0029075]
[1724442230007,0.0191488,63746.0,63742.0,0.0039075]
[1724442230008,0.2328,63744.0,63742.0,0.0039075]
[1724442230289,0.0121488,63743.0,63742.0,0.0039075]
[1724442230516,0.0121488,63743.0,63742.0,0.0029075]
[1724442230728,0.0121488,63743.0,63742.0,0.0039075]
[1724442230932,0.0121488,63743.0,63742.0,0.0019075]
[1724442231985,0.0121488,63743.0,63742.0,0.0009075]
[1724442232290,0.02459466,63749.0,63742.0,0.0009075]
[1724442232291,0.02459466,63749.0,63743.0,0.1877]
[1724442232483,0.7425,63750.0,63743.0,0.1877]
[1724442232484,0.7425,63750.0,63749.0,0.693595]
[1724442232622,0.7425,63750.0,63749.0,1.29132798]
[1724442232851,0.7425,63750.0,63749.0,1.91878798]
[1724442233064,0.7425,63750.0,63749.0,2.10248798]
[1724442233420,0.7425,63750.0,63749.0,1.78875798]
[1724442235077,0.7445,63750.0,63749.0,1.81475798]
[1724442235280,0.7435,63750.0,63749.0,1.80275798]
[1724442235522,0.7445,63750.0,63749.0,1.81675798]
[1724442236368,0.7445,63750.0,63749.0,0.84329798]
[1724442236587,0.7445,63750.0,63749.0,1.15702798]
[1724442237210,0.7435,63750.0,63749.0,1.14302798]
[1724442237417,0.7435,63750.0,63749.0,0.82929798]
[1724442237629,0.7445,63750.0,63749.0,0.84329798]
[1724442237842,0.7445,63750.0,63749.0,0.64159798]
[1724442238043,0.7445,63750.0,63749.0,0.65559798]
[1724442238247,0.7445,63750.0,63749.0,0.64159798]
[1724442238385,0.7435,63750.0,63749.0,0.62759798]
[1724442238595,0.7445,63750.0,63749.0,0.64159798]
[1724442238838,0.7455,63750.0,63749.0,0.96132798]
[1724442239047,0.74431124,63750.0,63749.0,0.94732798]
[1724442239195,0.74431124,63750.0,63749.0,0.63859798]
[1724442239851,0.74431124,63750.0,63749.0,0.63359798]
[1724442240092,0.74513724,63750.0,63749.0,0.63959798]
[1724442240307,0.74313724,63750.0,63749.0,0.94732798]
[1724442240481,0.74313724,63750.0,63749.0,0.95432798]
[1724442240722,0.74413724,63750.0,63749.0,0.95432798]
[1724442240927,0.74413724,63750.0,63749.0,0.63359798]
[1724442241132,0.74513724,63750.0,63749.0,0.63959798]
[1724442241337,0.74413724,63750.0,63749.0,0.63359798]
[1724442241549,0.74393724,63750.0,63749.0,0.63359798]
[1724442241758,0.74493724,63750.0,63749.0,0.64059798]
[1724442242173,0.74493724,63750.0,63749.0,0.33186798]
[1724442242584,0.74493724,63750.0,63749.0,0.64559798]
[1724442242963,0.74493724,63750.0,63749.0,0.64059798]
[1724442243598,0.74493724,63750.0,63749.0,0.32686798]
[1724442243802,0.74493724,63750.0,63749.0,0.64059798]
[1724442244003,0.74493724,63750.0,63749.0,0.64659798]
[1724442246342,0.74493724,63750.0,63749.0,0.96032798]
[1724442246957,0.74493724,63750.0,63749.0,1.27405798]
[1724442248234,0.0245952,63756.0,63755.0,0.15685]
[1724442248444,0.0245952,63756.0,63755.0,0.32085298]
[1724442249063,0.0245952,63756.0,63755.0,0.16400298]
[1724442250226,0.0245952,63756.0,63755.0,0.16500298]
[1724442250656,0.0245952,63756.0,63755.0,0.001]
[1724442250853,0.4468952,63756.0,63755.0,0.001]
[1724442251055,0.46204225,63756.0,63755.0,0.001]
[1724442251284,0.6087422,63756.0,63755.0,0.001]
[1724442251486,0.2335,63754.0,63736.0,0.49229154]
[1724442251653,0.01214929,63753.0,63736.0,0.49229154]
[1724442251885,0.4223,63749.0,63736.0,0.49229154]
[1724442252111,0.48137153,63749.0,63736.0,0.49229154]
[1724442252487,0.45904956,63749.0,63736.0,0.49229154]
[1724442253088,0.45904956,63749.0,63736.0,0.64918754]
[1724442253291,0.45904956,63749.0,63748.0,0.16591158]
[1724442253292,0.46704956,63749.0,63748.0,0.16591158]
[1724442253523,0.04160027,63749.0,63748.0,0.63751358]
[1724442253709,0.02460027,63749.0,63748.0,0.32177858]
[1724442253970,0.02460027,63749.0,63748.0,0.16591158]
[1724442254277,0.04160027,63749.0,63748.0,0.16691158]
[1724442254502,0.03260027,63749.0,63748.0,0.16591158]
[1724442254725,0.03660027,63749.0,63748.0,0.16591158]
[1724442255185,0.02860027,63749.0,63748.0,0.16491158]
[1724442255674,0.03260027,63749.0,63748.0,0.63551358]
[1724442255885,0.03260027,63749.0,63748.0,0.32177858]
[1724442256122,0.02460027,63749.0,63748.0,0.32177858]
[1724442256384,0.02960027,63749.0,63748.0,0.32177858]
[1724442256586,0.02960027,63749.0,63748.0,0.63551358]
[1724442256799,0.02960027,63749.0,63748.0,1.26298358]
[1724442256800,0.02660027,63749.0,63748.0,1.26298358]
[1724442257008,0.02860027,63749.0,63748.0,1.52188358]
[1724442257215,0.02760027,63749.0,63748.0,1.52188358]
[1724442257640,0.02860027,63749.0,63748.0,1.53288358]
[1724442258284,0.02560027,63749.0,63748.0,1.53288358]
[1724442258774,0.02660027,63749.0,63748.0,1.54288358]
[1724442261643,0.002,63749.0,63748.0,2.47275358]
[1724442261860,0.002,63749.0,63748.0,2.46875358]
[1724442262072,0.002,63749.0,63748.0,2.47075358]
[1724442262290,0.002,63749.0,63748.0,2.47275358]
[1724442262506,0.0008112,63749.0,63748.0,2.46275358]
[1724442262944,0.02541837,63753.0,63752.0,1.849517]
[1724442263164,0.02541837,63753.0,63752.0,2.45223498]
[1724442263394,0.000826,63753.0,63752.0,2.45423498]
[1724442263614,0.000826,63753.0,63752.0,2.13651998]
[1724442264059,0.000826,63753.0,63752.0,2.13851998]
[1724442264274,0.000826,63753.0,63752.0,2.15051998]
[1724442264483,0.000826,63753.0,63752.0,2.15251998]
[1724442265369,0.000826,63753.0,63752.0,2.14951998]
[1724442265798,0.02541476,63753.0,63752.0,2.14951998]
[1724442266013,0.02541476,63753.0,63752.0,2.16351998]
[1724442267710,0.02541476,63753.0,63752.0,0.66257498]
[1724442267936,0.02541476,63753.0,63752.0,0.17850298]
[1724442268508,0.02541476,63753.0,63752.0,0.16450298]
[1724442268708,0.02541476,63753.0,63752.0,0.17850298]
[1724442268909,0.02541476,63753.0,63752.0,0.33535998]
[1724442269248,0.02541476,63753.0,63752.0,0.16450298]
[1724442269392,0.46481476,63753.0,63748.0,0.0009086]
[1724442269605,0.46481476,63753.0,63752.0,0.023]
[1724442269759,0.47696306,63753.0,63752.0,0.009]
[1724442270138,0.47696306,63753.0,63752.0,0.019]
[1724442270337,0.46481476,63753.0,63752.0,0.009]
[1724442270584,0.47696336,63753.0,63752.0,0.009]
[1724442271479,0.47696336,63753.0,63748.0,0.0009086]
[1724442271660,0.2376486,63752.0,63748.0,0.0009086]
[1724442271813,0.2255,63752.0,63748.0,0.0009086]
[1724442272635,0.2255,63752.0,63748.0,0.0019086]
[1724442272838,0.1863,63751.0,63748.0,0.0019086]
[1724442273041,0.23764871,63750.0,63748.0,0.0009086]
[1724442273238,0.24734871,63749.0,63748.0,0.0019086]
[1724442273450,0.24734871,63749.0,63748.0,0.0029086]
[1724442273451,0.43324871,63749.0,63748.0,0.0029086]
[1724442274109,0.43324871,63749.0,63748.0,0.0019086]
[1724442274515,0.50101077,63749.0,63748.0,0.0019086]
[1724442274715,0.43324871,63749.0,63748.0,0.0019086]
[1724442275034,0.48013434,63749.0,63748.0,0.0019086]
[1724442275150,0.48013434,63749.0,63748.0,0.0009086]
[1724442275352,0.78499759,63749.0,63748.0,0.0009086]
[1724442275556,0.50158822,63749.0,63748.0,0.0009086]
[1724442275956,0.43124871,63749.0,63748.0,0.0009086]
[1724442276175,0.43324871,63749.0,63748.0,0.0009086]
[1724442276517,0.47914196,63749.0,63748.0,0.0009086]
[1724442276691,0.43024871,63749.0,63748.0,0.0009086]
[1724442276872,0.4181,63749.0,63748.0,0.0009086]
[1724442277083,0.4211,63749.0,63748.0,0.0019086]
[1724442277576,0.4271,63749.0,63748.0,0.0029086]
[1724442278138,0.4241,63749.0,63748.0,0.0019086]
[1724442278593,0.4311,63749.0,63748.0,0.0029086]
[1724442278817,0.4251,63749.0,63748.0,0.0019086]
[1724442279074,0.4251,63749.0,63748.0,0.0009086]
[1724442279075,0.4181,63749.0,63748.0,0.0009086]
[1724442279303,0.4221,63749.0,63748.0,0.0009086]
[1724442279745,0.4281,63749.0,63748.0,0.0019086]
[1724442280004,0.4241,63749.0,63748.0,0.0009086]
[1724442280237,0.4362496,63749.0,63748.0,0.0009086]
[1724442280453,0.50958892,63749.0,63748.0,0.0009086]
[1724442280673,0.4402496,63749.0,63748.0,0.0009086]
[1724442280917,0.4392496,63749.0,63748.0,0.0009086]
[1724442281150,0.50959619,63749.0,63748.0,0.0009086]
[1724442281372,0.50459619,63749.0,63748.0,0.0009086]
[1724442281590,0.51059619,63749.0,63748.0,0.0009086]
[1724442281844,0.4402496,63749.0,63748.0,0.0009086]
[1724442282089,0.4372496,63749.0,63748.0,0.0009086]
[1724442282331,0.4362496,63749.0,63748.0,0.0009086]
[1724442282567,0.48214005,63749.0,63748.0,0.0009086]
[1724442282827,0.4352496,63749.0,63748.0,0.0009086]
[1724442283077,0.4281,63749.0,63748.0,0.0009086]
[1724442283323,0.01,63749.0,63748.0,0.0009086]
[1724442283768,0.01,63749.0,63748.0,0.1577756]
[1724442284009,0.01,63749.0,63748.0,0.32177858]
[1724442284242,0.01,63749.0,63748.0,0.16491158]
[1724442284492,0.005,63749.0,63748.0,0.63551358]
[1724442284718,0.011,63749.0,63748.0,0.32177858]
[1724442284927,0.006,63749.0,63748.0,0.32177858]
[1724442285128,0.02541476,63753.0,63748.0,0.32177858]
[1724442285381,0.02541476,63753.0,63749.0,0.31586598]
[1724442285624,0.02522596,63753.0,63749.0,0.15900298]
[1724442286564,0.02522596,63753.0,63752.0,0.156857]
[1724442286785,0.02522596,63753.0,63752.0,0.63457498]
[1724442287015,0.02522596,63753.0,63752.0,0.32085998]
[1724442287130,0.02522596,63753.0,63752.0,0.16400298]
[1724442288183,0.02522596,63753.0,63748.0,0.0009086]
[1724442288384,0.02522596,63753.0,63752.0,0.002]
[1724442289205,0.02522596,63753.0,63749.0,0.16700298]
[1724442289668,0.02522596,63753.0,63749.0,0.16400298]
[1724442289890,0.02522596,63753.0,63749.0,0.16491158]
[1724442290136,0.02522596,63753.0,63752.0,0.004]
[1724442291347,0.02522596,63753.0,63749.0,0.16491158]
[1724442291750,0.02522596,63753.0,63752.0,0.002]